bitfinex/quotes_ETHUSD_20250814
["timestamp","ask_amount","ask_price","bid_price","bid_amount"]
[1755164399211,15.9115,4741.6,4741.5,0.554]
[1755164399610,15.9115,4741.6,4741.5,0.1074]
[1755164399812,15.9115,4741.6,4741.5,0.0018]
[1755164399813,18.2439,4741.6,4741.5,0.0018]
[1755164400031,18.6725,4741.6,4741.5,0.0018]
[1755164400258,20.78149274,4741.6,4741.5,0.0018]
[1755164401756,18.6725,4741.6,4741.5,0.0018]
[1755164402226,20.78149274,4741.6,4741.5,0.0018]
[1755164402421,12.6285,4741.6,4741.5,0.0018]
[1755164402627,15.9115,4741.6,4741.5,0.0018]
[1755164403554,15.9115,4741.6,4741.5,0.4484]
[1755164403937,15.9115,4741.6,4741.5,2.8693]
[1755164404136,15.9115,4741.6,4741.5,0.4484]
[1755164405143,11.07,4741.6,4741.5,0.4484]
[1755164405349,11.07,4741.6,4741.5,5.8693]
[1755164406052,11.07,4741.6,4741.5,8.48918834]
[1755164406441,11.07,4741.6,4741.5,5.8693]
[1755164406865,11.07,4741.6,4741.5,8.48918834]
[1755164407366,12.7513,4741.6,4741.5,3.0018]
[1755164408238,12.7513,4741.6,4741.5,0.0018]
[1755164408464,15.0837,4741.6,4741.5,0.0018]
[1755164408765,15.3526,4741.6,4741.5,0.0018]
[1755164409366,15.0837,4741.6,4741.5,0.0018]
[1755164409580,16.0343,4741.6,4741.5,0.0018]
[1755164409934,16.0343,4741.6,4741.5,0.1074]
[1755164410977,16.0335,4741.6,4741.5,0.1074]
[1755164412591,12.7505,4741.6,4741.5,0.1074]
[1755164412740,16.0335,4741.6,4741.5,0.1074]
[1755164413985,16.0335,4741.6,4741.5,0.554]
[1755164414872,16.0335,4741.6,4741.5,0.1074]
[1755164417245,18.3659,4741.6,4741.5,0.1074]
[1755164417970,18.7945,4741.6,4741.5,0.1074]
[1755164419048,18.3659,4741.6,4741.5,0.1074]
[1755164419249,20.47489274,4741.6,4741.5,0.1074]
[1755164419779,20.90349274,4741.6,4741.5,0.1074]
[1755164422676,20.47489274,4741.6,4741.5,0.1074]
[1755164424685,18.3659,4741.6,4741.5,0.1074]
[1755164425182,18.3679,4741.6,4741.5,0.1074]
[1755164425389,16.0355,4741.6,4741.5,0.1074]
[1755164427265,16.0355,4741.6,4741.5,3.0335]
[1755164427501,14.3542,4741.6,4741.5,3.0335]
[1755164427698,14.3542,4741.6,4741.5,0.5723]
[1755164430596,14.3542,4741.6,4741.5,0.1074]
[1755164431671,18.83809274,4741.6,4741.5,0.1074]
[1755164431882,16.7291,4741.6,4741.5,0.1074]
[1755164432081,18.83022725,4741.6,4741.5,0.1074]
[1755164432393,20.93921999,4741.6,4741.5,0.1074]
[1755164432776,18.56431999,4741.6,4741.5,0.1074]
[1755164432982,21.38051999,4741.6,4741.5,0.0018]
[1755164434271,23.59651999,4741.6,4741.5,0.0018]
[1755164435898,18.09751999,4741.6,4741.5,0.0018]
[1755164436116,20.93741999,4741.6,4741.5,0.0018]
[1755164436270,13.17152725,4741.6,4741.5,0.0018]
[1755164436470,16.45352725,4741.6,4741.5,0.0018]
[1755164436705,11.0704,4741.6,4741.5,0.5723]
[1755164436903,14.3524,4741.6,4741.5,3.0335]
[1755164437091,11.0704,4741.6,4741.5,3.0335]
[1755164437278,14.3524,4741.6,4741.5,3.0335]
[1755164440410,14.3524,4741.6,4741.5,0.1074]
[1755164442184,16.03364,4741.6,4741.5,0.1074]
[1755164443614,14.3524,4741.6,4741.5,0.1074]
[1755164443918,14.3524,4741.6,4741.5,0.5723]
[1755164445326,11.0704,4741.6,4741.5,0.5723]
[1755164445522,14.3514,4741.6,4741.5,0.5723]
[1755164447820,11.0704,4741.6,4741.5,0.5723]
[1755164448031,11.0704,4741.6,4741.5,6.0335]
[1755164448322,11.0704,4741.6,4741.5,8.65338834]
[1755164448712,11.0704,4741.6,4741.5,6.0335]
[1755164450702,10.5954,4741.6,4741.5,8.14253722]
[1755164450904,4.90691677,4741.6,4741.5,6.0335]
[1755164451421,4.90691677,4741.6,4741.5,9.3145]
[1755164452614,4.90691677,4741.6,4741.5,9.3135]
[1755164453118,4.90691677,4741.6,4741.5,6.0335]
[1755164453324,4.90691677,4741.6,4741.5,9.47378528]
[1755164453728,4.90691677,4741.6,4741.5,9.3135]
[1755164454093,4.90691677,4741.6,4741.5,6.0335]
[1755164454324,4.90691677,4741.6,4741.5,9.3135]
[1755164455025,4.90611677,4741.6,4741.5,9.3135]
[1755164459612,4.90611677,4741.6,4741.5,6.0335]
[1755164460008,4.90611677,4741.6,4741.5,9.3125]
[1755164460413,4.90611677,4741.6,4741.5,8.8476]
[1755164460612,4.90611677,4741.6,4741.5,5.5686]
[1755164460817,4.90611677,4741.6,4741.5,6.3864]
[1755164462121,5.38051677,4741.6,4741.5,3.3864]
[1755164462324,5.38051677,4741.6,4741.5,6.3864]
[1755164462741,5.38051677,4741.6,4741.5,3.3864]
[1755164463271,7.83751677,4741.6,4741.5,3.3864]
[1755164465423,7.83751677,4741.6,4741.5,0.1074]
[1755164465626,12.47316845,4741.6,4741.5,0.1074]
[1755164468228,6.26376845,4741.6,4741.5,0.1074]
[1755164468429,4.90611677,4741.6,4741.5,0.1074]
[1755164468935,4.90611677,4741.6,4741.5,5.9135]
[1755164470627,4.90611677,4741.6,4741.5,6.1241]
[1755164470832,4.90611677,4741.6,4741.5,5.9135]
[1755164473762,4.90611677,4741.6,4741.5,6.06843244]
[1755164475660,4.90611677,4741.6,4741.5,8.17746966]
[1755164475853,4.90611677,4741.6,4741.5,6.06843244]
[1755164476236,4.90611677,4741.6,4741.5,8.17746966]
[1755164476465,4.90611677,4741.6,4741.5,9.81024704]
[1755164477065,4.90611677,4741.6,4741.5,15.82859026]
[1755164477256,4.90531677,4741.6,4741.5,15.82859026]
[1755164477454,4.90531677,4741.6,4741.5,13.71955304]
[1755164477765,4.90531677,4741.6,4741.5,15.82859026]
[1755164478064,4.90531677,4741.6,4741.5,12.29737566]
[1755164480739,4.83600389,4741.6,4741.5,12.29737566]
[1755164480971,4.33051843,4741.6,4741.5,12.29737566]
[1755164485141,4.33051843,4741.6,4741.5,42.29737566]
[1755164486842,4.33051843,4741.6,4741.5,12.29737566]
[1755164487043,4.33051843,4741.6,4741.5,42.29737566]
[1755164488772,4.33051843,4741.6,4741.5,42.40708311]
[1755164491741,3.32888959,4741.6,4741.5,42.40708311]
[1755164494060,1.23,4741.8,4741.7,2.31954826]
[1755164494267,1.23,4741.8,4741.7,43.43096035]
[1755164494469,1.23,4741.8,4741.7,53.28156035]
[1755164494774,1.23,4741.8,4741.7,53.91364635]
[1755164495076,1.0196,4741.8,4741.7,53.91364635]
[1755164496663,1.23,4742.0,4741.9,2.31945931]
[1755164496867,1.23,4742.0,4741.9,48.44305931]
[1755164497057,1.23,4742.0,4741.9,48.54865931]
[1755164497479,3.692,4743.1,4742.3,0.2106]
[1755164497655,3.692,4743.1,4742.3,46.3342]
[1755164497860,3.692,4743.1,4742.3,46.4398]
[1755164498060,3.692,4743.1,4742.3,48.54848144]
[1755164498466,3.692,4743.1,4742.3,49.18050544]
[1755164499474,1.2292,4742.4,4742.3,49.18050544]
[1755164503066,3.692,4743.1,4742.5,2.31919251]
[1755164503283,3.692,4743.1,4742.5,8.59119251]
[1755164503588,3.692,4743.1,4742.5,11.41179251]
[1755164503789,3.692,4743.1,4742.5,41.41179251]
[1755164504162,3.692,4743.1,4742.5,48.44179251]
[1755164504362,3.692,4743.1,4742.5,48.44259251]
[1755164505091,3.692,4743.1,4742.5,45.17059251]
[1755164505298,3.692,4743.1,4742.5,48.44259251]
[1755164507494,3.692,4743.1,4742.5,18.44259251]
[1755164507708,1.23,4743.6,4742.9,0.2106]
[1755164508004,1.23,4743.6,4743.4,2.31879243]
[1755164508170,1.23,4743.6,4743.4,38.71647435]
[1755164508380,1.23,4743.6,4743.4,38.69539243]
[1755164509373,1.23,4743.6,4743.4,39.32731443]
[1755164510893,1.232,4743.5,4743.4,39.32731443]
[1755164511068,1.232,4743.5,4743.4,44.38131443]
[1755164512799,0.3358717,4743.5,4743.4,44.38131443]
[1755164514575,0.3358717,4743.5,4743.4,44.38211443]
[1755164514995,3.0954717,4743.5,4743.4,13.8536291]
[1755164515201,3.0954717,4743.5,4743.4,16.1253581]
[1755164515569,3.0954717,4743.5,4743.4,13.9160121]
[1755164515973,3.0954717,4743.5,4743.4,15.0386171]
[1755164516197,3.0954717,4743.5,4743.4,13.454927]
[1755164516380,3.0954717,4743.5,4743.4,11.783358]
[1755164516698,3.65141887,4743.5,4743.4,7.74484363]
[1755164517210,3.65141887,4743.5,4743.4,4.47484363]
[1755164517371,3.65141887,4743.5,4743.4,7.74484363]
[1755164517571,3.65141887,4743.5,4743.4,4.008322]
[1755164518102,3.65141887,4743.5,4743.4,3.3764]
[1755164521407,3.65141887,4743.5,4743.4,6.3754]
[1755164521906,3.65061887,4743.5,4743.4,6.3754]
[1755164522609,3.65061887,4743.5,4743.4,3.1064]
[1755164522904,3.65061887,4743.5,4743.4,6.3754]
[1755164524102,3.65061887,4743.5,4743.4,6.3764]
[1755164524713,3.65061887,4743.5,4743.4,3.3754]
[1755164525076,3.65061887,4743.5,4743.4,0.1064]
[1755164525280,3.65061887,4743.5,4743.4,3.3754]
[1755164526210,3.65061887,4743.5,4743.4,0.1064]
[1755164528521,3.0946717,4743.5,4743.4,3.1064]
[1755164528722,0.3350717,4743.5,4743.4,3.1064]
[1755164529026,0.3350717,4743.5,4743.4,25.10473592]
[1755164529330,0.3350717,4743.5,4743.4,25.083654]
[1755164529689,0.3350717,4743.5,4743.4,28.199322]
[1755164529987,0.3350717,4743.5,4743.4,41.751368]
[1755164530298,0.3350717,4743.5,4743.4,43.85956043]
[1755164533543,0.3350717,4743.5,4743.4,10.707725]
[1755164533840,0.3350717,4743.5,4743.4,16.975725]
[1755164534035,0.3350717,4743.5,4743.4,17.665574]
[1755164534236,0.3350717,4743.5,4743.4,14.665574]
[1755164534448,0.3350717,4743.5,4743.4,17.665574]
[1755164534651,0.7683717,4743.5,4743.4,11.955968]
[1755164534857,3.0946717,4743.5,4743.4,11.955968]
[1755164536462,0.7683717,4743.5,4743.4,11.955968]
[1755164536666,0.3350717,4743.5,4743.4,14.485142]
[1755164537160,0.3350717,4743.5,4743.4,32.160667]
[1755164537332,0.3350717,4743.5,4743.4,30.660667]
[1755164537526,0.3350717,4743.5,4743.4,30.157991]
[1755164537956,0.3350717,4743.5,4743.4,28.483042]
[1755164538126,0.3350717,4743.5,4743.4,41.955968]
[1755164538320,0.3350717,4743.5,4743.4,44.439468]
[1755164538522,0.3350717,4743.5,4743.4,44.913768]
[1755164538721,0.3350717,4743.5,4743.4,47.02196043]
[1755164538935,0.3350717,4743.5,4743.4,47.23256043]
[1755164539754,0.3350717,4743.5,4743.4,47.23156043]
[1755164539945,0.3350717,4743.5,4743.4,29.438197]
[1755164540251,0.3350717,4743.5,4743.4,45.51623443]
[1755164540427,3.0946717,4743.5,4743.4,3.72577178]
[1755164540767,3.0946717,4743.5,4743.4,3.2738]
[1755164540927,3.65053887,4743.5,4743.4,3.2738]
[1755164541615,1.32423887,4743.5,4743.4,3.2738]
[1755164541820,3.1394717,4743.5,4743.4,6.2738]
[1755164542239,3.1394717,4743.5,4743.4,6.2728]
[1755164542437,3.1394717,4743.5,4743.4,6.2758]
[1755164543631,3.1394717,4743.5,4743.4,6.3814]
[1755164543839,3.1386717,4743.5,4743.4,6.3814]
[1755164544438,3.69893887,4743.5,4743.4,6.3814]
[1755164547749,1.36733887,4743.5,4743.4,6.3814]
[1755164547951,0.8070717,4743.5,4743.4,6.3814]
[1755164549734,0.3342717,4743.5,4743.4,6.3814]
[1755164551765,0.3342717,4743.5,4743.4,3.1064]
[1755164551970,0.3342717,4743.5,4743.4,6.3764]
[1755164554851,0.3342717,4743.5,4743.4,6.3264]
[1755164555248,0.3342717,4743.5,4743.4,6.3272]
[1755164555450,0.3342717,4743.5,4743.4,6.959353]
[1755164556376,0.3342717,4743.5,4743.4,23.880893]
[1755164556677,0.3342717,4743.5,4743.4,14.322149]
[1755164557363,0.3342717,4743.5,4743.4,12.754625]
[1755164557694,0.3342717,4743.5,4743.4,10.491025]
[1755164558396,0.3342717,4743.5,4743.4,6.853753]
[1755164558567,0.3342717,4743.5,4743.4,15.179525]
[1755164558762,0.3342717,4743.5,4743.4,17.455425]
[1755164558980,0.3342717,4743.5,4743.4,17.906825]
[1755164559366,0.3342717,4743.5,4743.4,26.64956]
[1755164559566,0.3342717,4743.5,4743.4,13.051925]
[1755164559765,0.3342717,4743.5,4743.4,10.776025]
[1755164560368,0.3342717,4743.5,4743.4,15.558122]
[1755164560691,0.3342717,4743.5,4743.4,9.111122]
[1755164561396,0.3342717,4743.5,4743.4,16.551811]
[1755164562373,0.3342717,4743.5,4743.4,26.713855]
[1755164562871,0.3342717,4743.5,4743.4,17.443655]
[1755164563193,0.3342717,4743.5,4743.4,10.544484]
[1755164563501,0.3342717,4743.5,4743.4,14.037203]
[1755164563693,0.3342717,4743.5,4743.4,16.313103]
[1755164563998,0.3342717,4743.5,4743.4,20.48947478]
[1755164564369,0.3342717,4743.5,4743.4,13.30602478]
[1755164564572,0.3342717,4743.5,4743.4,43.30602478]
[1755164565183,0.3342717,4743.5,4743.4,43.51662478]
[1755164565686,0.3342717,4743.5,4743.4,39.791653]
[1755164565887,0.3334717,4743.5,4743.4,39.791653]
[1755164566103,0.3334717,4743.5,4743.4,30.400474]
[1755164566296,0.3334717,4743.5,4743.4,29.960085]
[1755164566475,0.3334717,4743.5,4743.4,29.108109]
[1755164566794,0.3334717,4743.5,4743.4,25.254638]
[1755164567477,0.3334717,4743.5,4743.4,39.897253]
[1755164567671,0.3334717,4743.5,4743.4,37.061651]
[1755164567878,0.3334717,4743.5,4743.4,24.9506762]
[1755164568287,0.3334717,4743.5,4743.4,24.0098632]
[1755164568491,0.3334717,4743.5,4743.4,25.4891052]
[1755164568693,0.3334717,4743.5,4743.4,24.7477912]
[1755164569190,0.3334717,4743.5,4743.4,20.6695562]
[1755164569591,0.3334717,4743.5,4743.4,13.0303432]
[1755164569912,0.3334717,4743.5,4743.4,9.7633432]
[1755164572626,0.3334717,4743.5,4743.4,7.166953]
[1755164572798,0.3334717,4743.5,4743.4,29.159949]
[1755164573640,0.3334717,4743.5,4743.4,27.743788]
[1755164574041,0.3334717,4743.5,4743.4,26.26857]
[1755164574737,0.3334717,4743.5,4743.4,27.72737]
[1755164575045,0.3334717,4743.5,4743.4,30.48267]
[1755164575831,0.3334717,4743.5,4743.4,39.922253]
[1755164576427,0.3334717,4743.5,4743.4,10.789997]
[1755164576802,0.3334717,4743.5,4743.4,19.762961]
[1755164576999,0.7996717,4743.5,4743.4,16.58830311]
[1755164577302,3.1791717,4743.5,4743.4,14.78228711]
[1755164577821,3.1791717,4743.5,4743.4,13.086888]
[1755164578019,3.1791717,4743.5,4743.4,11.923564]
[1755164578826,3.1791717,4743.5,4743.4,16.701736]
[1755164579231,0.7996717,4743.5,4743.4,16.701736]
[1755164579431,0.7996717,4743.5,4743.4,20.44802411]
[1755164580030,0.7996717,4743.5,4743.4,24.42174011]
[1755164580435,0.7996717,4743.5,4743.4,24.14147011]
[1755164580632,0.7996717,4743.5,4743.4,22.29068211]
[1755164580819,3.1791717,4743.5,4743.4,14.11620611]
[1755164581021,3.74348887,4743.5,4743.4,4.152118]
[1755164581226,3.74348887,4743.5,4743.4,3.3734]
[1755164581536,3.74348887,4743.5,4743.4,6.3734]
[1755164581850,3.74348887,4743.5,4743.4,3.3734]
[1755164582923,3.74348887,4743.5,4743.4,0.1064]
[1755164583122,3.74348887,4743.5,4743.4,3.3734]
[1755164583419,3.74348887,4743.5,4743.4,0.1064]
[1755164583641,3.74348887,4743.5,4743.4,3.3724]
[1755164584227,3.74348887,4743.5,4743.4,3.2668]
[1755164584432,3.74348887,4743.5,4743.4,3.3724]
[1755164586030,1.36398887,4743.5,4743.4,3.3724]
[1755164586231,3.74348887,4743.5,4743.4,3.3724]
[1755164586429,3.74348887,4743.5,4743.4,0.1064]
[1755164588845,1.36398887,4743.5,4743.4,0.1064]
[1755164589018,3.74348887,4743.5,4743.4,0.1064]
[1755164590057,1.36398887,4743.5,4743.4,0.1064]
[1755164591053,3.68097564,4743.5,4743.4,6.3734]
[1755164591526,3.68097564,4743.5,4743.4,3.1064]
[1755164594622,3.68097564,4743.5,4743.4,6.3734]
[1755164598194,0.27095847,4743.5,4743.4,36.2678]
[1755164598374,0.27095847,4743.5,4743.4,9.813208]
[1755164598677,0.27095847,4743.5,4743.4,9.445269]
[1755164599266,0.27095847,4743.5,4743.4,17.723262]
[1755164599774,0.27095847,4743.5,4743.4,15.428062]
[1755164600086,0.27095847,4743.5,4743.4,17.482752]
[1755164600284,0.27095847,4743.5,4743.4,17.942852]
[1755164600649,0.27095847,4743.5,4743.4,14.676852]
[1755164600850,0.27095847,4743.5,4743.4,17.942852]
[1755164601353,0.27095847,4743.5,4743.4,22.504175]
[1755164602384,0.27095847,4743.5,4743.4,39.0221]
[1755164602689,0.27095847,4743.5,4743.4,38.995534]
[1755164603305,0.27095847,4743.5,4743.4,41.31432643]
[1755164603506,0.27095847,4743.5,4743.4,41.97303343]
[1755164603996,0.27095847,4743.5,4743.4,45.71932154]
[1755164604756,0.27095847,4743.5,4743.4,41.97303343]
[1755164605659,0.27095847,4743.5,4743.4,41.76243343]
[1755164606876,0.27095847,4743.5,4743.4,41.97303343]
[1755164608299,0.27095847,4743.5,4743.4,42.07863343]
[1755164611006,0.27015847,4743.5,4743.4,42.07863343]
[1755164611814,0.27015847,4743.5,4743.4,42.07763343]
[1755164611975,1e-08,4743.5,4743.4,42.07763343]
[1755164612177,1e-08,4743.5,4743.4,8.796458]
[1755164612411,1e-08,4743.5,4743.4,12.061458]
[1755164612614,1e-08,4743.5,4743.4,15.061458]
[1755164612818,1e-08,4743.5,4743.4,39.612841]
[1755164612987,1e-08,4743.5,4743.4,36.612841]
[1755164613197,1e-08,4743.5,4743.4,36.897941]
[1755164613714,1e-08,4743.5,4743.4,36.896941]
[1755164614014,1e-08,4743.5,4743.4,39.611841]
[1755164614323,1e-08,4743.5,4743.4,39.163541]
[1755164614890,1e-08,4743.5,4743.4,35.899541]
[1755164615103,1e-08,4743.5,4743.4,39.163541]
[1755164615986,1e-08,4743.5,4743.4,30.887523]
[1755164616200,0.42910001,4743.5,4743.4,21.516358]
[1755164616402,2.91780001,4743.5,4743.4,21.516358]
[1755164616605,2.91780001,4743.5,4743.4,18.252358]
[1755164616929,2.91780001,4743.5,4743.4,30.37306]
[1755164617332,2.91780001,4743.5,4743.4,22.241101]
[1755164617817,2.91780001,4743.5,4743.4,36.896941]
[1755164618200,2.91780001,4743.5,4743.4,31.456824]
[1755164618532,0.42910001,4743.5,4743.4,31.456824]
[1755164618712,1e-08,4743.5,4743.4,31.456824]
[1755164618910,1e-08,4743.5,4743.4,36.896941]
[1755164619132,1e-08,4743.5,4743.4,33.632941]
[1755164619516,1e-08,4743.5,4743.4,36.896941]
[1755164619831,0.42910001,4743.5,4743.4,6.896941]
[1755164620019,0.42910001,4743.5,4743.4,37.107541]
[1755164620220,0.42910001,4743.5,4743.4,36.896941]
[1755164620701,0.42910001,4743.5,4743.4,29.672017]
[1755164620903,2.91780001,4743.5,4743.4,10.158197]
[1755164621130,3.45598001,4743.5,4743.4,10.158197]
[1755164622000,1e-08,4743.5,4743.4,30.180153]
[1755164622204,1e-08,4743.5,4743.4,30.285753]
[1755164623042,1e-08,4743.5,4743.4,36.3704]
[1755164623548,1e-08,4743.5,4743.4,35.053828]
[1755164623908,1e-08,4743.5,4743.4,36.3704]
[1755164624104,0.42910001,4743.5,4743.4,36.3704]
[1755164624502,0.42910001,4743.5,4743.4,33.1064]
[1755164625130,0.42910001,4743.5,4743.4,36.3704]
[1755164626031,1e-08,4743.5,4743.4,36.3704]
[1755164626550,1e-08,4743.5,4743.4,37.002536]
[1755164630628,1e-08,4743.5,4743.4,33.738536]
[1755164630943,1e-08,4743.5,4743.4,37.001536]
[1755164631843,1e-08,4743.5,4743.4,33.738536]
[1755164632045,0.47130001,4743.5,4743.4,37.001536]
[1755164633254,0.47050001,4743.5,4743.4,37.001536]
[1755164635319,1.23,4743.6,4743.5,3.0]
[1755164635520,1.23,4743.6,4743.5,33.0008]
[1755164636252,1.23,4743.6,4743.5,33.632937]
[1755164639974,1.23,4743.6,4743.5,30.385474]
[1755164640265,1.7013,4743.6,4743.5,36.895937]
[1755164640462,1.7013,4743.6,4743.5,27.870208]
[1755164641470,1.7013,4743.6,4743.5,36.895937]
[1755164641970,1.23,4743.6,4743.5,36.895937]
[1755164643174,1.23,4743.6,4743.5,31.419329]
[1755164643375,1.23,4743.6,4743.5,36.895937]
[1755164644271,1.23,4743.6,4743.5,36.2638]
[1755164645480,1.23,4743.6,4743.5,33.0008]
[1755164645640,1.23,4743.6,4743.5,36.2628]
[1755164645977,1.23,4743.6,4743.5,33.0008]
[1755164646178,1.23,4743.6,4743.5,36.2628]
[1755164646356,1.23,4743.6,4743.5,33.0008]
[1755164646558,1.23,4743.6,4743.5,35.118518]
[1755164646787,1.23,4743.6,4743.5,30.397718]
[1755164646971,1.23,4743.6,4743.5,33.659718]
[1755164647177,1.23,4743.6,4743.5,30.397718]
[1755164647489,1.23,4743.6,4743.5,36.2628]
[1755164647991,1.23,4743.6,4743.5,39.99574538]
[1755164649007,1.7013,4743.6,4743.5,33.81548438]
[1755164649180,4.1595,4743.6,4743.5,33.81548438]
[1755164649509,4.1595,4743.6,4743.5,33.54722538]
[1755164649667,4.1595,4743.6,4743.5,27.22602538]
[1755164649870,4.1595,4743.6,4743.5,26.59377538]
[1755164650264,1.23,4743.6,4743.5,23.33177538]
[1755164650458,1.9479,4743.6,4743.5,12.16742238]
[1755164650782,4.4061,4743.6,4743.5,12.16742238]
[1755164651099,4.4061,4743.6,4743.5,8.434477]
[1755164651396,1.9479,4743.6,4743.5,8.434477]
[1755164651562,1.9479,4743.6,4743.5,28.805043]
[1755164651761,1.9479,4743.6,4743.5,25.544043]
[1755164651986,1.7013,4743.6,4743.5,28.805043]
[1755164652497,1.7013,4743.6,4743.5,30.154834]
[1755164652793,1.7013,4743.6,4743.5,26.246034]
[1755164653014,1.23,4743.6,4743.5,26.246034]
[1755164653380,1.23,4743.6,4743.5,28.977134]
[1755164653568,1.23,4743.6,4743.5,38.9929]
[1755164655401,1.2292,4743.6,4743.5,38.9929]
[1755164656202,1.2292,4743.6,4743.5,36.2618]
[1755164656792,1.2292,4743.6,4743.5,33.0008]
[1755164656970,1.2292,4743.6,4743.5,36.2608]
[1755164657522,1.2292,4743.6,4743.5,6.2608]
[1755164657699,1.2292,4743.6,4743.5,36.2608]
[1755164659224,1.2292,4743.6,4743.5,33.0008]
[1755164659431,1.2292,4743.6,4743.5,36.2608]
[1755164659919,1.2292,4743.6,4743.5,38.9919]
[1755164661189,1.2292,4743.6,4743.5,39.00398306]
[1755164661420,1.2292,4743.6,4743.5,38.9763]
[1755164664330,1.2292,4743.6,4743.5,39.608358]
[1755164666554,1.2292,4743.6,4743.5,46.93278638]
[1755164666716,1.2292,4743.6,4743.5,47.14338638]
[1755164666717,1.13763856,4743.6,4743.5,47.14338638]
[1755164666917,0.63232143,4743.6,4743.5,47.14338638]
[1755164667130,0.28782215,4743.6,4743.5,47.14338638]
[1755164667853,0.28782215,4743.6,4743.5,42.28969628]
[1755164669155,3.692,4745.7,4744.6,0.2106]
[1755164669352,3.692,4745.7,4744.6,41.83154952]
[1755164670355,3.692,4745.7,4744.6,42.46326252]
[1755164672436,3.692,4745.7,4744.6,42.20627223]
[1755164673457,3.692,4745.7,4744.6,38.73767223]
[1755164673646,4.1462,4745.7,4744.6,43.94081032]
[1755164673844,0.4542,4745.4,4744.6,43.94081032]
[1755164674352,0.4542,4745.4,4744.6,46.83271032]
[1755164674923,0.4542,4745.4,4744.6,41.99467223]
[1755164675957,0.4542,4745.4,4744.6,41.99367223]
[1755164676159,0.4542,4745.4,4744.6,38.73767223]
[1755164676371,3.692,4745.7,4744.6,33.738113]
[1755164676570,1.6842,4744.7,4744.6,33.994113]
[1755164676726,1.6842,4744.7,4744.6,33.3624]
[1755164676927,1.6842,4744.7,4744.6,36.3624]
[1755164677160,1.23,4744.7,4744.6,38.47005923]
[1755164677359,0.002,4745.1,4745.0,5.10748155]
[1755164677659,0.0012,4745.1,4745.0,48.50163746]
[1755164678031,0.0012,4745.1,4745.0,49.13324946]
[1755164679767,1e-08,4745.1,4745.0,49.13404946]
[1755164680066,1e-08,4745.1,4745.0,49.10296613]
[1755164682772,1e-08,4745.1,4745.0,54.70296613]
[1755164683471,0.002,4745.6,4745.4,2.31790391]
[1755164683672,0.002,4745.6,4745.4,43.68358166]
[1755164683871,3.612482,4745.7,4745.6,2.3178151]
[1755164684182,3.612482,4745.7,4745.6,41.4647151]
[1755164684744,0.002,4745.7,4745.6,41.4647151]
[1755164684948,32.78741,4746.2,4746.1,0.2106]
[1755164685267,32.78741,4746.2,4746.1,38.57259311]
[1755164685857,32.78741,4746.2,4746.1,38.67635121]
[1755164686572,32.78741,4746.2,4746.1,8.67635121]
[1755164686746,32.78741,4746.2,4746.1,38.67635121]
[1755164687272,32.78741,4746.2,4746.1,39.57196124]
[1755164689063,32.78741,4746.2,4746.1,42.46386124]
[1755164689871,32.78741,4746.2,4746.1,42.7489932]
[1755164690570,32.703881,4746.2,4746.1,42.7489932]
[1755164690776,32.703881,4746.2,4746.1,42.46466124]
[1755164691268,32.673044,4746.2,4746.1,42.46466124]
[1755164691687,32.637444,4746.2,4746.1,12.46466124]
[1755164691980,30.351876,4746.2,4746.1,42.46466124]
[1755164692402,30.335649,4746.2,4746.1,42.46466124]
[1755164692897,30.335649,4746.2,4746.1,72.46466124]
[1755164694466,30.335649,4746.2,4746.1,77.29100703]
[1755164694898,29.335649,4746.2,4746.1,77.29100703]
[1755164695196,29.335649,4746.2,4746.1,84.32100703]
[1755164695567,29.285177,4746.2,4746.1,79.49466124]
[1755164695768,29.285177,4746.2,4746.1,49.49466124]
[1755164695991,29.285177,4746.2,4746.1,79.49466124]
[1755164696217,29.285177,4746.2,4746.1,73.63682118]
[1755164696369,32.051777,4746.2,4746.1,78.43982047]
[1755164696699,32.051777,4746.2,4746.1,73.08082736]
[1755164696871,32.051777,4746.2,4746.1,76.33282736]
[1755164697202,32.051777,4746.2,4746.1,65.84022736]
[1755164697383,32.051777,4746.2,4746.1,73.51065936]
[1755164697575,32.051777,4746.2,4746.1,72.40105885]
[1755164698091,32.051777,4746.2,4746.1,75.40105885]
[1755164698304,32.051777,4746.2,4746.1,71.67060013]
[1755164698805,32.051777,4746.2,4746.1,41.67060013]
[1755164698992,32.051777,4746.2,4746.1,8.41860013]
[1755164699180,32.051777,4746.2,4746.1,3.36860013]
[1755164699387,32.051777,4746.2,4746.1,62.90756013]
[1755164699597,32.050977,4746.2,4746.1,62.90756013]
[1755164700111,32.050977,4746.2,4746.1,66.62060013]
[1755164700809,29.754377,4746.2,4746.1,66.62060013]
[1755164701009,32.050977,4746.2,4746.1,66.62060013]
[1755164702276,29.284377,4746.2,4746.1,66.62060013]
[1755164702607,29.284377,4746.2,4746.1,68.9063252]
[1755164702809,29.284377,4746.2,4746.1,69.2225252]
[1755164703012,29.284377,4746.2,4746.1,72.0830252]
[1755164703386,29.754377,4746.2,4746.1,65.36999324]
[1755164703590,29.754377,4746.2,4746.1,68.83259324]
[1755164703906,32.050977,4746.2,4746.1,63.47360013]
[1755164704115,32.050977,4746.2,4746.1,66.72460013]
[1755164704880,32.050977,4746.2,4746.1,36.72460013]
[1755164705080,29.754377,4746.2,4746.1,8.83159324]
[1755164705421,29.284377,4746.2,4746.1,68.83159324]
[1755164705609,29.284377,4746.2,4746.1,71.24129324]
[1755164705808,29.284377,4746.2,4746.1,71.92519079]
[1755164705982,29.284377,4746.2,4746.1,78.95519079]
[1755164706413,29.284377,4746.2,4746.1,48.72209324]
[1755164706618,26.34689346,4746.2,4746.1,48.72209324]
[1755164708704,18.39425515,4746.2,4746.1,48.72209324]
[1755164709320,18.39425515,4746.2,4746.1,54.77987899]
[1755164709525,16.27425515,4746.2,4746.1,54.77987899]
[1755164711214,16.27425515,4746.2,4746.1,48.72209324]
[1755164712228,16.27425515,4746.2,4746.1,45.86159324]
[1755164712527,16.74425515,4746.2,4746.1,45.86159324]
[1755164713615,16.27425515,4746.2,4746.1,46.59871824]
[1755164713926,16.27425515,4746.2,4746.1,46.59771824]